[Event "15th Chennai GM Open 2025"]
[Site "Chennai"]
[Date "2025.01.02"]
[Round "1.10"]
[White "Vaz, Ethan"]
[Black "Abhay Bandewar"]
[Result "1-0"]
[ECO "B31"]
[WhiteElo "2412"]
[BlackElo "2070"]
[Annotator "TA"]
[PlyCount "59"]
[EventDate "2025.01.02"]
[EventType "swiss"]
[EventCountry "IND"]
[SourceTitle "playchess.com"]
[Source "ChessBase"]
[SourceQuality "1"]
[TimeControl "5400+30"]

{[%evp 9,59,29,28,25,22,13,12,0,39,30,63,64,65,26,23,-8,-7,0,0,10,14,0,0,0,0,0,-11,-14,0,0,41,35,54,51,42,44,55,41,44,18,84,77,81,73,80,10,9,9,8,2,853,493]} 1. e4 {[%emt 0:00:05]} c5 {[%emt 0:00:07]} 2. Nf3 {[%emt 0:00:04]} Nc6 {[%emt 0:00:06]} 3. Bb5 {[%emt 0:00:07]} g6 {[%emt 0:00:29]} 4. Bxc6 {[%emt 0:00:06]} dxc6 {[%emt 0:00:05]} 5. d3 {[%emt 0:00:06]} Bg7 {[%emt 0:00:14]} 6. a4 {[%emt 0:00:04]} a5 {[%emt 0:02:22]} 7. Nbd2 {[%emt 0:11:03]} Qc7 {[%emt 0:05:28]} 8. Qe2 {[%emt 0:04:00] The position is equal.} e5 {[%emt 0:01:57]} 9. Nc4 {[%emt 0:05:20]} Bg4 {[%emt 0:12:15]} 10. Be3 {[%emt 0:05:29]} b6 {[%emt 0:00:00]} 11. h3 {[%emt 0:06:40] White is more active.} Be6 {[%emt 0:00:00]} 12. Nfd2 {[%emt 0:03:37]} Nf6 {[%emt 0:00:05][%cal Bg8f6,Bf6h5,Bh5f4][%mdl 32]} 13. O-O {[%emt 0:03:27]} Nh5 {[%emt 0:01:47]} 14. b4 {[%emt 0:02:49]} b5 $1 {[%emt 0:21:31]} 15. axb5 {[%emt 0:04:04]} cxb5 {[%emt 0:00:15]} 16. Nxa5 {[%emt 0:07:38]} Nf4 {[%emt 0:06:40]} 17. Qf3 {[%emt 0:04:15]} cxb4 {[%emt 0:00:31]} 18. Nab3 {[%emt 0:03:51]} O-O {[%emt 0:04:22]} 19. Nc5 {[%emt 0:04:12]} Ra3 {[%emt 0:05:06][%cal Ba8a3,Ba3c3,Bc3c2][%mdl 32]} 20. Rab1 {[%emt 0:04:02][%cal Ba1b1,Bb1b4,Bb4b5,Bb5b8,Bb8f8][%mdl 32]} Qc6 {[%emt 0:14:52]} 21. Rxb4 {[%emt 0:10:57][%cal Of1b1]} Rc3 {[%emt 0:00:18]} 22. Nxe6 {[%emt 0:03:50]} Nxe6 {[%emt 0:06:22]} 23. Qd1 {[%emt 0:00:42]} Rxc2 {[%emt 0:02:05]} 24. Qb1 {[%emt 0:07:08]} ({But not} 24. Rxb5 $2 Rxd2 25. Qb1 Rc2 $19) (24. Nc4 $5 Rc3 25. Qd2 $16) 24... Rd8 {[%emt 0:00:21]} (24... Nf4 $11) 25. Rxb5 {[%emt 0:00:58]} (25. Nc4 {simplifies} Rc3 26. Rxb5 Rdxd3 27. Nxe5 Bxe5 28. Rxe5 Rb3 29. Qa2) 25... Rxd3 {[%emt 0:00:24]} 26. Nf3 {[%emt 0:01:56]} Rdc3 {[%emt 0:02:18]} 27. Nxe5 {[%emt 0:01:00]} ({Better is} 27. Rb8+ $16 Nf8 28. Rd1) 27... Qxe4 $11 {[%emt 0:01:19]} 28. Rb8+ {[%emt 0:00:59]} Nf8 {[%emt 0:00:23]} 29. Nd7 {[%emt 0:01:47][%cal Ob8f8] [#] Strongly threatening Rxf8+!} Rxe3 $4 {[%emt 0:03:34][%mdl 8192]} (29... Qe7 $11 30. Nb6 Qe4) 30. Rxf8+ {[%emt 0:00:17] Weighted Error Value: White=0.09 (flawless) /Black=0.13 (very precise) .  Loses game:     	---       	Black=1      Mistake:       	White=1     	Black=1      Inaccurate:     	White=3     	Black=3      OK:         	White=10    	Black=7      Best:        	White=2     	Black=3      Strong:       	---       	Black=1} 1-0

[Event "15th Chennai GM Open 2025"]
[Site "Chennai"]
[Date "2025.01.02"]
[Round "1.11"]
[White "Jval Saurin Patel"]
[Black "Fedorov, Alexei"]
[Result "0-1"]
[ECO "A53"]
[WhiteElo "2064"]
[BlackElo "2409"]
[Annotator "TA"]
[PlyCount "98"]
[EventDate "2025.01.02"]
[EventType "swiss"]
[EventCountry "IND"]
[SourceTitle "playchess.com"]
[Source "ChessBase"]
[SourceQuality "1"]
[TimeControl "5400+30"]

{[%evp 16,98,12,18,18,14,15,12,18,10,10,10,12,12,22,16,27,11,10,0,7,0,-14,-10,-12,-14,-13,-16,-19,-14,1,-36,-39,-23,-55,-46,-32,-358,-345,-561,-530,-535,-270,-302,-291,-283,-229,-209,-215,-216,-216,-257,-205,-398,-392,-29961,-29962,-29967,-29968,-29967,-29967,-29965,-29966,-29975,-29976,-29976,-29977,-29977,-29978,-29976,-29977,-29980,-29981,-29981,-29980,-29979,-29978,-29982,-29983,-29984,-29985,-29985,-29986,-29986,-29987]} 1. d4 {[%emt 0:00:12]} Nf6 {[%emt 0:00:16]} 2. c4 {[%emt 0:00:07]} d6 {[%emt 0:00:03]} 3. Nc3 {[%emt 0:00:06]} Nbd7 {[%emt 0:00:15][%cal Bb8d7,Bd7c5,Bc5d3][%mdl 32]} 4. e4 {[%emt 0:00:20]} e5 {[%emt 0:00:03]} 5. d5 {[%emt 0:00:15]} Nc5 {[%emt 0:00:50]} 6. Bd3 {[%emt 0:00:46]} Nxd3+ {[%emt 0:01:15]} 7. Qxd3 {[%emt 0:00:08]} Be7 {[%emt 0:00:06]} 8. Nge2 {[%emt 0:00:12]} O-O {[%emt 0:03:06]} 9. O-O {[%emt 0:02:59]} Nd7 {[%emt 0:03:04]} 10. Ng3 {[%emt 0:03:21]} Bg5 {[%emt 0:02:22]} 11. b4 {[%emt 0:09:48]} g6 {[%emt 0:14:20]} 12. a3 {[%emt 0:12:37]} b6 {[%emt 0:04:27]} 13. Kh1 {[%emt 0:00:36]} Bb7 {[%emt 0:01:45]} 14. f3 {[%emt 0:04:06]} Bxc1 {[%emt 0:04:03]} 15. Rfxc1 {[%emt 0:01:13]} Qg5 {[%emt 0:01:18]} 16. Na4 {[%emt 0:04:18][%cal Bc3a4,Ba4b2,Bb2d3][%mdl 32]} Ba6 {[%emt 0:03:05]} 17. Qd1 {[%emt 0:10:46]} h5 {[%emt 0:02:40]} 18. Ne2 {[%emt 0:17:12]} f5 {[%emt 0:02:42]} 19. exf5 {[%emt 0:00:10]} gxf5 {[%emt 0:01:44]} 20. Nb2 {[%emt 0:00:25]} Nf6 {[%emt 0:04:50]} 21. Nd3 {[%emt 0:04:04]} Rae8 {[%emt 0:02:05]} 22. a4 {[%emt 0:01:19]} Kh8 {[%emt 0:06:35]} 23. Qf1 {[%emt 0:04:02]} Nxd5 {[%emt 0:04:34]} 24. cxd5 {[%emt 0:09:49] Strongly threatening b5.} Bxd3 {[%emt 0:00:08]} 25. Rxc7 {[%emt 0:00:12][%cal Of1f2]} Rc8 {[%emt 0:05:58]} 26. f4 $2 {[%emt 0:03:39][%mdl 8192]} (26. Rc6 $1 $15) 26... Qg4 $19 {[%emt 0:00:34]} 27. Qc1 $2 {[%emt 0:00:26]} (27. h3 Qxe2 28. Qxe2 Bxe2 29. Rd7) 27... Rxc7 {[%emt 0:01:47]} 28. Qxc7 {[%emt 0:00:07]} Bxe2 {[%emt 0:01:01]} 29. Qxd6 {[%emt 0:01:27]} Qg7 {[%emt 0:00:27]} 30. Qxe5 {[%emt 0:06:25]} Qxe5 {[%emt 0:06:43]} 31. fxe5 {[%emt 0:00:08][%mdl 4096] Endgame KRB-KR} Bc4 {[%emt 0:02:03]} 32. d6 {[%emt 0:00:38]} Be6 {[%emt 0:00:23]} 33. a5 {[%emt 0:00:23]} b5 {[%emt 0:00:51] White must now prevent ...Kg7.} 34. Rc1 $2 {[%emt 0:04:09]} (34. Ra3) 34... Rc8 {[%emt 0:00:53]} 35. Rc7 $2 {[%emt 0:00:19]} ({Don't blunder} 35. Rxc8+ $2 Bxc8 36. g3 Kg7 $19) (35. Rd1 $19 Kg8 36. Kg1) 35... Rxc7 {[%emt 0:01:25]} 36. dxc7 {[%emt 0:00:06] KB-KP} f4 {[%emt 0:01:26]} 37. Kg1 {[%emt 0:01:27]} Kg7 {[%emt 0:00:07]} 38. Kf2 {[%emt 0:00:06]} Kg6 {[%emt 0:00:05]} 39. g3 {[%emt 0:00:11]} Kf5 {[%emt 0:00:38]} 40. Kf3 {[%emt 0:00:26]} fxg3 {[%emt 0:01:13]} (40... Kxe5 $2 41. gxf4+ Kd6 42. Kg3 $19) 41. Kxg3 {[%emt 0:00:06]} Kxe5 {[%emt 0:00:18]} 42. Kh4 {[%emt 0:00:06]} Bg4 {[%emt 0:01:27]} 43. c8=Q {[%emt 0:00:25]} Bxc8 {[%emt 0:00:05]} 44. Kxh5 {[%emt 0:00:06] KB-K3P} Bh3 {[%emt 0:00:34]} 45. Kh4 {[%emt 0:00:07]} Bf1 {[%emt 0:00:04]} 46. Kg5 {[%emt 0:00:06]} Kd4 {[%emt 0:00:06]} 47. h4 {[%emt 0:00:05]} Kc4 {[%emt 0:00:04]} 48. h5 {[%emt 0:00:04]} Kxb4 {[%emt 0:00:08]} 49. h6 {[%emt 0:00:04]} Bd3 $1 {[%emt 0:00:04]} (49... Kxa5 $2 {too greedy.} 50. h7 $18) 0-1

[Event "15th Chennai GM Open 2025"]
[Site "Chennai"]
[Date "2025.01.02"]
[Round "1.12"]
[White "Kaustuv, Kundu"]
[Black "Ram Vishal Parab"]
[Result "1-0"]
[ECO "A14"]
[WhiteElo "2409"]
[BlackElo "2064"]
[Annotator "TA"]
[PlyCount "103"]
[EventDate "2025.01.02"]
[EventType "swiss"]
[EventCountry "IND"]
[SourceTitle "playchess.com"]
[Source "ChessBase"]
[SourceQuality "1"]
[TimeControl "5400+30"]

{[%evp 16,103,18,20,52,55,76,90,81,81,85,79,111,122,116,84,177,169,196,191,186,188,174,156,260,236,237,257,236,187,197,197,246,237,258,239,255,170,189,175,165,159,259,245,255,243,275,279,365,316,480,481,481,462,523,489,495,483,518,527,506,541,516,516,539,514,745,688,745,735,1559,1641,1517,1143,813,596,600,576,702,715,1312,1263,1205,1146,4100,4112,29962,29960,6412,6275]} 1. Nf3 {[%emt 0:00:10]} Nf6 {[%emt 0:00:06]} 2. g3 {[%emt 0:01:01]} e6 {[%emt 0:00:07]} 3. Bg2 {[%emt 0:00:08]} d5 {[%emt 0:00:06]} 4. O-O {[%emt 0:00:08]} Be7 {[%emt 0:00:05]} 5. c4 {[%emt 0:00:06]} O-O {[%emt 0:00:07]} 6. b3 {[%emt 0:00:05]} c5 {[%emt 0:00:05]} 7. Bb2 {[%emt 0:00:14]} Nc6 {[%emt 0:00:08]} 8. cxd5 {[%emt 0:00:13]} Nxd5 {[%emt 0:00:09]} 9. d4 {[%emt 0:00:45]} Bf6 {[%emt 0:11:22]} 10. e4 $1 {[%emt 0:00:07][%cal Be2e4,Be4e5][%mdl 32]} Nc7 {[%emt 0:01:55][%cal Rc5d4]} 11. e5 {[%emt 0:00:28]} Be7 {[%emt 0:00:07]} 12. dxc5 {[%emt 0:00:06]} Bxc5 {[%emt 0:02:24]} 13. Nbd2 {[%emt 0:00:53]} Nd5 {[%emt 0:04:45]} 14. Ne4 {[%emt 0:00:51]} Be7 {[%emt 0:01:14]} 15. a3 {[%emt 0:02:33] Repels Ndb4} Qb6 {[%emt 0:06:33]} (15... Qc7 $16) 16. Nfd2 $18 {[%cal Bf3d2,Bd2c4,Bc4d6,Bd6b7,Bb7c5][%mdl 32]} Bd7 {[%emt 0:07:41]} 17. Nc4 {[%emt 0:02:36]} Qc7 {[%emt 0:00:54]} 18. Rc1 {[%emt 0:02:02]} Rad8 {[%emt 0:04:29]} 19. Ncd6 {[%emt 0:06:51]} f6 {[%emt 0:11:48]} (19... Bc8 $16 {keeps fighting.} 20. Qh5 h6) 20. Nc5 {[%emt 0:01:07][%csl LRb7,LRd5]} fxe5 {[%emt 0:02:57]} 21. Ndxb7 {[%emt 0:01:17]} Bxc5 {[%emt 0:01:23]} 22. Nxc5 {[%emt 0:08:40]} Bc8 {[%emt 0:02:27][%cal Od5f4]} 23. Qe2 {[%emt 0:03:23]} Rf7 {[%emt 0:12:15]} (23... a5 $142 24. Rfd1 h6) 24. b4 {[%emt 0:03:55]} Qd6 {[%emt 0:03:24]} 25. Ne4 {[%emt 0:07:31]} Qd7 {[%emt 0:00:32]} 26. Qc4 {[%emt 0:00:29] Inhibits Nd4.} Nd4 {[%emt 0:07:58]} 27. Bxd4 {[%emt 0:01:08]} exd4 {[%emt 0:00:06]} 28. Qxd4 {[%emt 0:00:05]} Qe7 {[%emt 0:01:31]} (28... Nf4 $16 29. Qxd7 Ne2+ 30. Kh1 Rfxd7) 29. Rfd1 {[%emt 0:02:53]} Rff8 {[%emt 0:01:27]} 30. Qc5 {[%emt 0:02:43][%cal Od1d5]} Qf7 {[%emt 0:02:14]} 31. f4 {[%emt 0:03:59]} h5 {[%emt 0:09:35]} 32. Nd6 {[%emt 0:02:20]} Qd7 {[%emt 0:00:11]} (32... Qe7 $142) 33. Rxd5 {[%emt 0:01:49]} exd5 {[%emt 0:00:08]} 34. Qxd5+ {[%emt 0:00:05]} Qe6 {[%emt 0:00:28]} 35. Rxc8 {[%emt 0:00:44]} Qxd5 {[%emt 0:00:39]} 36. Bxd5+ {[%emt 0:00:10]} Kh7 {[%emt 0:00:05]} 37. Be4+ {[%emt 0:00:13]} Kg8 {[%emt 0:00:21]} 38. Rxd8 {[%emt 0:01:55]} Rxd8 {[%emt 0:00:01]} 39. Nb5 {[%emt 0:00:20]} Rd7 {[%emt 0:00:19]} 40. Bc6 {[%emt 0:01:43]} Re7 {[%emt 0:00:06]} 41. a4 {[%emt 0:00:24]} Re1+ {[%emt 0:00:52]} 42. Kg2 {[%emt 0:00:22]} Rb1 {[%emt 0:00:15]} 43. Nxa7 {[%emt 0:00:06]} Rxb4 {[%emt 0:00:05]} 44. Bb5 {[%emt 0:00:09]} Kf7 {[%emt 0:00:11]} 45. Nc6 {[%emt 0:00:06]} Rb1 {[%emt 0:00:03]} 46. Bc4+ {[%emt 0:00:24]} Kf6 {[%emt 0:00:05]} 47. a5 {[%emt 0:00:09][%cal Ba4a5,Ba5a6][%mdl 32] a6 would now be deadly.} Rb2+ {[%emt 0:00:17]} 48. Kf3 {[%emt 0:00:19]} Rc2 {[%emt 0:00:06]} 49. Bd5 {[%emt 0:01:25]} Rxh2 {[%emt 0:00:14]} 50. a6 {[%emt 0:00:05] White wants to mate with a7.} Rh1 {[%emt 0:00:03]} 51. Nb4 {[%emt 0:00:05]} Ra1 {[%emt 0:00:33]} 52. Na2 {[%emt 0:00:06]} 1-0

[Event "15th Chennai GM Open 2025"]
[Site "Chennai"]
[Date "2025.01.02"]
[Round "1.13"]
[White "Majumder Shrayan"]
[Black "Sathvik Adiga"]
[Result "0-1"]
[ECO "A01"]
[WhiteElo "2061"]
[BlackElo "2395"]
[Annotator "TA"]
[PlyCount "80"]
[EventDate "2025.01.02"]
[EventType "swiss"]
[EventCountry "IND"]
[SourceTitle "playchess.com"]
[Source "ChessBase"]
[SourceQuality "1"]
[TimeControl "5400+30"]

{[%evp 9,80,45,31,46,46,22,37,29,35,35,56,50,44,10,16,24,29,0,28,36,35,33,70,54,103,104,126,103,147,135,153,153,152,150,154,143,148,46,32,12,18,-68,0,0,0,-333,-317,-793,-778,-776,-758,-739,-720,-1022,-1015,-1015,-1013,-29990,-840,-797,0,-817,-785,-870,-692,-29976,-29977,-29978,-29979,-29989,-29990,-29992,-29993]} 1. b3 {[%emt 0:00:28]} e5 {[%emt 0:00:13]} 2. Bb2 {[%emt 0:00:09][%cal Bc1b2,Bb2e5,Be5g3][%mdl 32]} Nc6 {[%emt 0:00:04]} 3. e3 {[%emt 0:00:23]} d5 {[%emt 0:00:07]} 4. Bb5 {[%emt 0:00:22]} Nge7 {[%emt 0:00:06]} 5. Bxe5 {[%emt 0:00:28]} a6 {[%emt 0:00:07]} 6. Bxc6+ {[%emt 0:00:08]} Nxc6 {[%emt 0:00:02]} 7. Bg3 {[%emt 0:00:11]} h5 {[%emt 0:00:18] Threatens to win with ...h4.} 8. h4 {[%emt 0:00:06] White is slightly better.} d4 {[%emt 0:02:12]} 9. Ne2 {[%emt 0:00:57]} Bd6 {[%emt 0:00:50]} 10. Bxd6 {[%emt 0:02:35]} Qxd6 {[%emt 0:00:02]} 11. exd4 {[%emt 0:00:15]} Nxd4 {[%emt 0:02:53]} 12. Nxd4 {[%emt 0:02:58]} Qxd4 {[%emt 0:00:03]} 13. Nc3 {[%emt 0:00:12]} Bg4 {[%emt 0:01:30] Prevents Qe2+.} 14. Ne2 $1 {[%emt 0:00:43]} Qf6 {[%emt 0:01:10]} 15. f3 {[%emt 0:06:27]} Bf5 {[%emt 0:01:40][%cal Of5c2]} 16. d4 {[%emt 0:16:14]} O-O-O {[%emt 0:07:04][%cal Ba8d8,Bd8d5,Bd5f5,Bf5a5][%mdl 32]} (16... Qg6 $1 $14) 17. Qd2 $16 {[%emt 0:09:17]} Rhe8 {[%emt 0:16:13][%cal Bh8e8,Be8e4,Be4d4][%mdl 32]} 18. c3 {[%emt 0:13:11][%cal Bc2c3,Bc3c4][%mdl 32]} Rd5 {[%emt 0:33:15]} 19. Kf2 {[%emt 0:06:19]} Bd7 {[%emt 0:06:50]} 20. Rae1 {[%emt 0:04:24]} Re4 {[%emt 0:01:55] Dodges Nf4} 21. c4 {[%emt 0:03:33]} Rf5 {[%emt 0:02:15]} 22. Ng3 {[%emt 0:12:28]} Rxd4 {[%emt 0:01:45] [#]} (22... Rxh4 $2 23. Nxf5 Bxf5 24. Rxh4 Qxh4+ 25. Kg1 $18) 23. Qe3 {[%emt 0:00:43]} (23. Qb4 $1 $16 {[%cal Rb4f8] Qf8+ is the strong threat.} b6 24. Nxf5 Bxf5 25. Rd1 Rxd1 26. Rxd1 Qxh4+ 27. Kg1) 23... Ra5 $14 {[%emt 0:00:45]} 24. a4 {[%emt 0:05:16]} (24. Re2 $5) 24... Qb6 {[%emt 0:03:12][%cal Oa5e5]} (24... Rxh4 25. Ne4 Rxe4 26. Qxe4 $14) (24... Bc6 {keeps more tension.} 25. Qc3 Rc5 26. Ne2 Rd6) 25. Re2 {[%emt 0:08:16]} ({White should play} 25. Rd1 $11 Rxd1 26. Rxd1) 25... f6 {[%emt 0:03:26]} (25... f5 $1 $15 26. Nxh5 g6) 26. Ne4 $1 $11 {[%emt 0:05:55][%cal Ob3b4]} f5 {[%emt 0:04:55]} 27. b4 $2 {[%emt 0:00:55][%mdl 8192]} f4 $19 {[%emt 0:01:09]} (27... Qxb4 $2 28. Qxd4 fxe4 29. Rd1 $18 (29. Qxg7 Qc5+ 30. Ke1 b5 $11) (29. Rxe4 Bxa4 30. Kg3 b6 $18) (29. Qxe4 Qc5+ 30. Kg3 Qd6+ 31. Qf4 Rxa4 $16)) (27... Rxa4 28. Nc5 Qf6 29. Nxa4 Bxa4 30. Qe7 Rxc4 31. Qxf6 gxf6 32. Re7 $16) 28. bxa5 $2 {[%emt 0:01:04]} (28. Qb3 Rxc4+ (28... Rxe4+ 29. c5 $17) 29. Ke1 Qxb4+ (29... Rc1+ 30. Kd2 $17) 30. Qxb4 Rxb4 31. Kf2) 28... fxe3+ {[%emt 0:00:06]} 29. Kxe3 {[%emt 0:00:08]} Qa7 {[%emt 0:00:27] Hoping for ...Rd1+.} (29... Rxc4+ $2 {too greedy.} 30. axb6 Bxa4 31. Rg1 $18) 30. c5 {[%emt 0:00:08] [#]} Rxe4+ $1 {[%emt 0:00:20]} 31. fxe4 {[%emt 0:01:05]} (31. Kxe4 Qxc5) 31... Qxc5+ {[%emt 0:00:05]} 32. Kf4 {[%emt 0:00:07]} Bg4 {[%emt 0:00:10]} 33. Re3 {[%emt 0:00:09]} Qf8+ {[%emt 0:00:14]} (33... Qd6+ $142 34. e5 Qd4+ 35. Kg3 Qxe3+ 36. Kh2 Qxe5+ 37. Kg1 Qxa5 38. Kf2 Qc5+ (38... Qxa4 $2 39. Rf1 $19) 39. Kg3 Qe3+ 40. Kh2 Qf4+ 41. Kg1 Qg3 (41... Qxa4 {gets mated.} 42. Kh2 Qf4+ 43. Kg1 Qg3 44. Kf1 Qe3 45. Rh3 Be2+ 46. Ke1 Bf3+ 47. Kf1 Qe2+ 48. Kg1 Qxg2#) 42. Kf1 Qe3 43. Rh3 Be2+ (43... Bxh3 44. gxh3 c5 45. a5 c4 46. Kg2 c3 47. Kh2 c2 48. Kg2 c1=Q 49. Kh2 Qeg1#) 44. Ke1 Bf3+ 45. Kf1 Qe2+ 46. Kg1 Qxg2#) 34. Kg3 {[%emt 0:00:06]} Qc5 $2 {[%emt 0:00:22]} (34... Qd6+ $19 35. e5 Qb4) 35. Rhe1 $2 {[%emt 0:00:20][%mdl 8192]} (35. Kf4 $11 Qd6+ (35... Qxa5 $2 36. Rhe1 $19) 36. e5 Qd4+ 37. Kg3 Qxe3+ 38. Kh2 Qxe5+ 39. Kg1 Qg3 (39... Qxa5 {leads to mate.} 40. Kf2 Qd2+ 41. Kg3 Qe3+ 42. Kh2 Qf4+ 43. Kg1 Qg3 44. Kf1 Qe3 45. Rh3 Be2+ 46. Ke1 Bf3+ 47. Kf1 Qe2+ 48. Kg1 Qxg2#) 40. Rh3 Bxh3 41. Kf1 Qxg2+ 42. Ke1 Bf5 43. Kd1 Qf2 44. Kc1 Qc2#) 35... Qe5+ {[%emt 0:00:32]} 36. Kf2 {[%emt 0:00:07]} c5 {[%emt 0:00:10] And now ...c4 would win.} 37. g3 {[%emt 0:00:13]} c4 {[%emt 0:00:12] Black mates.} 38. Kg1 {[%emt 0:00:10]} Qd4 {[%emt 0:00:25]} 39. Kh1 {[%emt 0:00:13]} c3 {[%emt 0:00:06]} 40. e5 {[%emt 0:00:13]} c2 {[%emt 0:00:11] Weighted Error Value: White=0.96/Black=0.56.  Loses game:     	White=1     	---        Mistake:       	White=3     	Black=2      Inaccurate:     	White=1     	Black=2      OK:         	White=7     	Black=5      Best:        	White=2     	Black=3      Strong:       	White=2     	---} 0-1

[Event "15th Chennai GM Open 2025"]
[Site "Chennai"]
[Date "2025.01.02"]
[Round "1.14"]
[White "Agibileg, Uurtsaikh"]
[Black "Prishita Gupta"]
[Result "1/2-1/2"]
[ECO "D89"]
[WhiteElo "2392"]
[BlackElo "2058"]
[Annotator "TA"]
[PlyCount "111"]
[EventDate "2025.01.02"]
[EventType "swiss"]
[EventCountry "IND"]
[SourceTitle "playchess.com"]
[Source "ChessBase"]
[SourceQuality "1"]
[TimeControl "5400+30"]

{[%evp 31,111,-24,-25,-63,-95,-89,-85,-154,-149,-169,-156,-160,-160,-155,-141,-166,-159,-164,-142,-153,-100,-182,-190,-191,-188,-221,-213,-312,-142,-139,-142,-147,-143,-134,-149,-137,-140,-206,-205,-231,-177,-179,-175,-165,-172,-203,-203,-192,-36,-34,-17,-17,0,0,0,0,0,0,0,0,0,0,0,0,0,0,0,0,0,0,0,0,0,0,0,0,0,0,0,0,0,0]} 1. d4 {[%emt 0:00:14]} Nf6 {[%emt 0:00:11]} 2. c4 {[%emt 0:00:17]} g6 {[%emt 0:00:13]} 3. Nc3 {[%emt 0:00:19]} d5 {[%emt 0:00:09]} 4. cxd5 {[%emt 0:00:10]} Nxd5 {[%emt 0:00:07]} 5. e4 {[%emt 0:00:10]} Nxc3 {[%emt 0:00:09]} 6. bxc3 {[%emt 0:00:09]} Bg7 {[%emt 0:00:34]} 7. Bc4 {[%emt 0:00:12]} c5 {[%emt 0:00:11]} 8. Ne2 {[%emt 0:00:09]} Nc6 {[%emt 0:00:17]} 9. Be3 {[%emt 0:00:12]} O-O {[%emt 0:00:45]} 10. O-O {[%emt 0:00:11]} Bg4 {[%emt 0:00:28]} 11. f3 {[%emt 0:00:21]} Na5 {[%emt 0:00:28]} 12. Bd3 {[%emt 0:00:19]} cxd4 {[%emt 0:00:24]} 13. cxd4 {[%emt 0:00:08]} Be6 {[%emt 0:00:50]} 14. d5 {[%emt 0:00:25]} Bxa1 {[%emt 0:00:18]} 15. Qxa1 {[%emt 0:00:07]} f6 {[%emt 0:00:34]} 16. Bh6 {[%emt 0:03:16]} Re8 {[%emt 0:00:23]} 17. Nd4 {[%emt 0:01:11]} Bd7 $1 {[%emt 0:02:18]} 18. Kh1 {[%emt 0:01:05][%cal Oe4e5]} Rc8 {[%emt 0:04:33]} 19. e5 {[%emt 0:01:05]} Nc4 $1 $17 {[%emt 0:04:57]} (19... fxe5 $2 20. Ne6 Nc6 21. dxc6 $18 (21. Nxd8 Nd4 $18)) 20. e6 {[%emt 0:03:23][%cal Of1c1]} Ba4 {[%emt 0:01:36]} 21. Qb1 {[%emt 0:00:19][%cal Od3g6]} Ne5 $1 {[%emt 0:01:57]} (21... Qxd5 22. Bxg6 Qxd4 23. Bxh7+ Kh8 24. Bg7+ Kxg7 25. Qg6+ Kh8 26. Qh5 $18) 22. Be4 {[%emt 0:01:25][%cal Of3f4]} Qb6 {[%emt 0:02:28]} 23. Qxb6 {[%emt 0:00:20]} axb6 {[%emt 0:00:08]} 24. g4 {[%emt 0:00:12]} Rc4 {[%emt 0:01:49]} 25. Be3 Rb4 {[%emt 0:05:08]} (25... Rec8 $142 26. Rb1 R4c5) 26. Rc1 {[%emt 0:03:23]} (26. a3 $17 Rc4 27. Rb1) 26... Nc4 $1 $19 {[%emt 0:06:14]} 27. a3 {[%emt 0:00:57]} Nxa3 {[%emt 0:00:14]} 28. d6 {[%emt 0:02:00]} exd6 {[%emt 0:01:50]} 29. Rc7 {[%emt 0:00:44] [#]} (29. Bd5 $142) 29... Rxd4 {[%emt 0:10:25]} 30. Bxd4 $17 {[%emt 0:01:11]} Nb5 {[%emt 0:00:02]} (30... Rxe6 31. Bd5 (31. Bxb7 Nb5 $11) (31. Bxb6 Bc6 $15) (31. Rxb7 Nb5 $11) 31... Nb5 32. Bxe6+ Kf8 33. Rf7+ (33. Rxh7 Nxd4 34. Bc8 Nxf3 $16) (33. Bxb6 Nxc7 34. Bxc7 Ke7 $18) (33. Rxb7 Nxd4 34. Bd5 Be8 $18) 33... Ke8 34. Bxf6) 31. Rc4 {[%emt 0:00:21]} Bb3 {[%emt 0:00:12]} 32. Rb4 {[%emt 0:00:14]} Nxd4 {[%emt 0:00:06]} (32... Bxe6 $2 33. Rxb5 Bxg4 34. Bxf6 $18) 33. Rxd4 {[%emt 0:00:05]} Rxe6 {[%emt 0:00:19]} (33... Bxe6 34. Rxd6 b5 35. Rb6 $15) 34. Bxb7 {[%emt 0:00:33][%mdl 4096] Endgame [#] KRB-KRB. Black is two pawns up.} (34. Rb4 $17 d5 35. Rxb3 dxe4 36. fxe4) 34... b5 $1 $19 {[%emt 0:02:24][%cal Od6d5]} 35. Kg2 {[%emt 0:01:18]} Bc4 {[%emt 0:02:13]} 36. Bd5 {[%emt 0:01:46]} Bxd5 {[%emt 0:00:57]} 37. Rxd5 {[%emt 0:00:07] KR-KR. Black is two pawns up.} b4 {[%emt 0:00:04]} 38. Rb5 {[%emt 0:00:38]} Re2+ {[%emt 0:11:15]} 39. Kg3 {[%emt 0:00:06]} Kf7 $2 {[%emt 0:01:12]} ({Black should play} 39... Rb2 $19 {White must now prevent ...g5.} 40. Rd5 b3 41. Rxd6 Rb1) 40. Rxb4 $15 {[%emt 0:00:33]} Ke6 {[%emt 0:00:08]} 41. h4 {[%emt 0:03:21]} d5 {[%emt 0:09:08]} 42. Rb6+ {[%emt 0:01:25]} Ke7 {[%emt 0:09:22]} 43. Rb7+ {[%emt 0:01:32]} Kd6 {[%emt 0:01:46]} 44. Rxh7 {[%emt 0:00:22] aiming for Rh6.} d4 {[%emt 0:00:07]} 45. Rh8 {[%emt 0:00:23]} Kd5 {[%emt 0:02:27]} 46. Rd8+ {[%emt 0:00:34]} Kc4 {[%emt 0:00:07]} 47. Rd6 {[%emt 0:02:25]} d3 {[%emt 0:01:31]} 48. Rxf6 {[%emt 0:01:44]} d2 {[%emt 0:01:44]} 49. Rd6 $1 {[%emt 0:00:44]} Kc3 {[%emt 0:00:47]} 50. Kf4 {[%emt 0:02:49]} Re6 {[%emt 0:03:22]} 51. Rd5 {[%emt 0:03:59]} Kc2 {[%emt 0:01:02]} 52. h5 {[%emt 0:00:51]} gxh5 {[%emt 0:01:17]} (52... d1=B $2 {loses.} 53. h6 $18) 53. gxh5 {[%emt 0:00:06]} d1=Q {[%emt 0:00:11]} 54. Rxd1 {[%emt 0:00:07]} Kxd1 {[%emt 0:00:05]} 55. Kg5 {[%emt 0:00:08]} Re1 {[%emt 0:00:45]} 56. h6 {[%emt 0:01:42]} 1/2-1/2